[Event "Titled Tuesday Blitz March 22 Late 2022"]
[White "Szpar, Milosz"]
[Black "Kujawski, Adam"]
[WhiteFideId "1184989"]
[BlackFideId "1100920"]
[WhiteElo "2447"]
[BlackElo "2053"]
[Result "0-1"]
[Round "07"]
[TimeControl "180+1"]
[Date "2022.03.22"]
[WhiteClock "0:01:24"]
[BlackClock "0:00:10"]

1. e4 {[%clk 0:03:00]}  e5 {[%clk 0:02:59]} 2. Nf3 {[%clk 0:03:01]}  Nc6 {[%clk 0:02:59]} 3. Bb5 {[%clk 0:03:01]}  a6 {[%clk 0:02:58]} 4. Ba4 {[%clk 0:03:02]}  Nf6 {[%clk 0:02:58]} 5. O-O {[%clk 0:03:02]}  Be7 {[%clk 0:02:57]} 6. Re1 {[%clk 0:03:02]}  b5 {[%clk 0:02:56]} 7. Bb3 {[%clk 0:03:02]}  d6 {[%clk 0:02:56]} 8. c3 {[%clk 0:03:01]}  O-O {[%clk 0:02:56]} 9. d4 {[%clk 0:03:00]}  Bg4 {[%clk 0:02:54]} 10. Be3 {[%clk 0:02:59]}  Bh5 {[%clk 0:02:52]} 11. h3 {[%clk 0:02:58]}  exd4 {[%clk 0:02:44]} 12. cxd4 {[%clk 0:02:57]}  Na5 {[%clk 0:02:44]} 13. Bc2 {[%clk 0:02:38]}  Nc4 {[%clk 0:02:43]} 14. Bc1 {[%clk 0:02:38]}  c5 {[%clk 0:02:40]} 15. b3 {[%clk 0:02:38]}  Nb6 {[%clk 0:02:36]} 16. Bb2 {[%clk 0:02:38]}  cxd4 {[%clk 0:02:10]} 17. g4 {[%clk 0:02:30]}  Bg6 {[%clk 0:01:47]} 18. Nxd4 {[%clk 0:02:30]}  d5 {[%clk 0:01:22]} 19. Nc6 {[%clk 0:02:23]}  Qc7 {[%clk 0:01:20]} 20. Nxe7+ {[%clk 0:02:14]}  Qxe7 {[%clk 0:01:19]} 21. e5 {[%clk 0:02:11]}  Ne4 {[%clk 0:01:04]} 22. Nd2 {[%clk 0:02:09]}  Qh4 {[%clk 0:00:47]} 23. Nxe4 {[%clk 0:02:00]}  dxe4 {[%clk 0:00:47]} 24. Qd4 {[%clk 0:02:00]}  Qxh3 {[%clk 0:00:42]} 25. Re3 {[%clk 0:02:00]}  Qxg4+ {[%clk 0:00:41]} 26. Rg3 {[%clk 0:02:01]}  Qe6 {[%clk 0:00:39]} 27. Bxe4 {[%clk 0:01:54]}  Rfd8 {[%clk 0:00:39]} 28. Qe3 {[%clk 0:01:51]}  Nd5 {[%clk 0:00:38]} 29. Qf3 {[%clk 0:01:51]}  Rac8 {[%clk 0:00:34]} 30. Kg2 {[%clk 0:01:51]}  Bxe4 {[%clk 0:00:19]} 31. Qxe4 {[%clk 0:01:51]}  f5 {[%clk 0:00:19]} 32. Qh4 {[%clk 0:01:46]}  g6 {[%clk 0:00:19]} 33. Rh1 {[%clk 0:01:46]}  Rd7 {[%clk 0:00:15]} 34. Rgh3 {[%clk 0:01:42]}  Rc2 {[%clk 0:00:13]} 35. Qxh7+ {[%clk 0:01:32]}  Rxh7 {[%clk 0:00:12]} 36. Rxh7 {[%clk 0:01:32]}  Nf4+ {[%clk 0:00:11]} 37. Kf3 {[%clk 0:01:28]}  Nh5 {[%clk 0:00:09]} 38. Ra7 {[%clk 0:01:24]}  Qd5+ {[%clk 0:00:10]} 0-1


[Site "https://www.chess.com"]

[Event "Titled Tuesday Blitz March 22 Late 2022"]
[White "Tan, Jun Ying"]
[Black "Bernal Moro, Luis Javier"]
[WhiteFideId "5710413"]
[BlackFideId "2200236"]
[WhiteElo "1827"]
[BlackElo "2373"]
[Result "1-0"]
[Round "07"]
[TimeControl "180+1"]
[Date "2022.03.22"]
[WhiteClock "0:00:13"]
[BlackClock "0:00:04"]

1. d4 {[%clk 0:03:00]}  Nf6 {[%clk 0:02:59]} 2. c4 {[%clk 0:03:01]}  g6 {[%clk 0:02:59]} 3. Nc3 {[%clk 0:03:01]}  Bg7 {[%clk 0:03:00]} 4. e4 {[%clk 0:03:02]}  d6 {[%clk 0:03:00]} 5. Nf3 {[%clk 0:03:02]}  O-O {[%clk 0:03:00]} 6. Be2 {[%clk 0:03:02]}  e5 {[%clk 0:03:00]} 7. O-O {[%clk 0:03:03]}  Qe8 {[%clk 0:02:58]} 8. d5 {[%clk 0:02:56]}  a5 {[%clk 0:02:58]} 9. Ne1 {[%clk 0:02:55]}  Na6 {[%clk 0:02:57]} 10. Nd3 {[%clk 0:02:56]}  Nd7 {[%clk 0:02:56]} 11. Be3 {[%clk 0:02:52]}  f5 {[%clk 0:02:55]} 12. f3 {[%clk 0:02:50]}  f4 {[%clk 0:02:52]} 13. Bf2 {[%clk 0:02:50]}  h5 {[%clk 0:02:52]} 14. a3 {[%clk 0:02:46]}  Nac5 {[%clk 0:02:46]} 15. Nxc5 {[%clk 0:02:37]}  Nxc5 {[%clk 0:02:32]} 16. Nb5 {[%clk 0:02:31]}  Qd8 {[%clk 0:02:12]} 17. b4 {[%clk 0:02:30]}  Nd7 {[%clk 0:01:36]} 18. c5 {[%clk 0:02:27]}  Nf6 {[%clk 0:01:36]} 19. Rc1 {[%clk 0:02:09]}  Rf7 {[%clk 0:01:35]} 20. Qc2 {[%clk 0:01:59]}  Bf8 {[%clk 0:01:25]} 21. cxd6 {[%clk 0:01:57]}  Bxd6 {[%clk 0:01:24]} 22. Nxd6 {[%clk 0:01:43]}  cxd6 {[%clk 0:01:24]} 23. Bh4 {[%clk 0:00:58]}  Rg7 {[%clk 0:01:14]} 24. Bg5 {[%clk 0:00:54]}  Qb6+ {[%clk 0:01:06]} 25. Kh1 {[%clk 0:00:53]}  Nh7 {[%clk 0:01:02]} 26. Qxc8+ {[%clk 0:00:47]}  Rxc8 {[%clk 0:00:59]} 27. Rxc8+ {[%clk 0:00:48]}  Nf8 {[%clk 0:00:47]} 28. bxa5 {[%clk 0:00:27]}  Qxa5 {[%clk 0:00:39]} 29. Rb1 {[%clk 0:00:16]}  Rc7 {[%clk 0:00:35]} 30. Bd8 {[%clk 0:00:14]}  Rxc8 {[%clk 0:00:04]} 31. Bxa5 {[%clk 0:00:13]} 1-0


[Site "https://www.chess.com"]

[Event "Titled Tuesday Blitz March 22 Late 2022"]
[White "Terletsky, Oleg"]
[Black "Broca Jimenez, Fernando"]
[WhiteFideId "14116774"]
[BlackFideId "5104742"]
[WhiteElo "2064"]
[BlackElo "2062"]
[Result "1-0"]
[Round "07"]
[TimeControl "180+1"]
[Date "2022.03.22"]
[WhiteClock "0:01:45"]
[BlackClock "0:00:27"]

1. e4 {[%clk 0:03:00]}  c5 {[%clk 0:02:53]} 2. Nf3 {[%clk 0:03:00]}  d6 {[%clk 0:02:53]} 3. d4 {[%clk 0:03:01]}  cxd4 {[%clk 0:02:54]} 4. Nxd4 {[%clk 0:03:02]}  Nf6 {[%clk 0:02:54]} 5. Nc3 {[%clk 0:03:03]}  a6 {[%clk 0:02:54]} 6. Bc4 {[%clk 0:03:02]}  e6 {[%clk 0:02:44]} 7. O-O {[%clk 0:03:02]}  Be7 {[%clk 0:02:43]} 8. Qf3 {[%clk 0:02:58]}  Qc7 {[%clk 0:02:31]} 9. Bb3 {[%clk 0:02:52]}  O-O {[%clk 0:02:24]} 10. Qg3 {[%clk 0:02:49]}  Kh8 {[%clk 0:01:55]} 11. a4 {[%clk 0:02:41]}  Bd7 {[%clk 0:01:39]} 12. Be3 {[%clk 0:02:37]}  Nc6 {[%clk 0:01:38]} 13. f4 {[%clk 0:02:35]}  Rac8 {[%clk 0:01:20]} 14. f5 {[%clk 0:02:33]}  d5 {[%clk 0:01:03]} 15. Qxc7 {[%clk 0:02:20]}  Rxc7 {[%clk 0:01:02]} 16. fxe6 {[%clk 0:02:19]}  Nxd4 {[%clk 0:00:53]} 17. Bxd4 {[%clk 0:02:11]}  Bxe6 {[%clk 0:00:38]} 18. exd5 {[%clk 0:02:07]}  Bd7 {[%clk 0:00:38]} 19. Rae1 {[%clk 0:01:48]}  Bg4 {[%clk 0:00:31]} 20. Rxe7 {[%clk 0:01:45]}  Rxe7 {[%clk 0:00:27]} 21. Rxf6 {[%clk 0:01:45]} 1-0


[Site "https://www.chess.com"]

[Event "Titled Tuesday Blitz March 22 Late 2022"]
[White "Vovk, Orest"]
[Black "Rastbod, Ali"]
[WhiteFideId "14113490"]
[BlackFideId "12567477"]
[WhiteElo "2203"]
[BlackElo "2200"]
[Result "0-1"]
[Round "07"]
[TimeControl "180+1"]
[Date "2022.03.22"]
[WhiteClock "0:01:20"]
[BlackClock "0:02:09"]

1. d4 {[%clk 0:03:00]}  Nf6 {[%clk 0:02:59]} 2. Nf3 {[%clk 0:03:01]}  c5 {[%clk 0:02:58]} 3. c3 {[%clk 0:03:00]}  Qb6 {[%clk 0:02:58]} 4. Qb3 {[%clk 0:02:59]}  d5 {[%clk 0:02:57]} 5. Qxb6 {[%clk 0:02:58]}  axb6 {[%clk 0:02:57]} 6. e3 {[%clk 0:02:53]}  Nc6 {[%clk 0:02:57]} 7. Be2 {[%clk 0:02:50]}  Bf5 {[%clk 0:02:57]} 8. O-O {[%clk 0:02:46]}  h6 {[%clk 0:02:57]} 9. Bd2 {[%clk 0:02:44]}  c4 {[%clk 0:02:48]} 10. Na3 {[%clk 0:02:40]}  Ra5 {[%clk 0:02:42]} 11. Rfc1 {[%clk 0:02:27]}  e6 {[%clk 0:02:38]} 12. Nc2 {[%clk 0:02:27]}  Bd6 {[%clk 0:02:35]} 13. a3 {[%clk 0:02:26]}  g5 {[%clk 0:02:33]} 14. Nb4 {[%clk 0:02:24]}  Ke7 {[%clk 0:02:27]} 15. Nxc6+ {[%clk 0:02:17]}  bxc6 {[%clk 0:02:28]} 16. Be1 {[%clk 0:02:08]}  c5 {[%clk 0:02:26]} 17. Bd1 {[%clk 0:02:05]}  Bd3 {[%clk 0:02:21]} 18. Bc2 {[%clk 0:02:04]}  Ne4 {[%clk 0:02:18]} 19. Bxd3 {[%clk 0:02:02]}  cxd3 {[%clk 0:02:19]} 20. c4 {[%clk 0:02:02]}  Ra4 {[%clk 0:02:13]} 21. b3 {[%clk 0:01:58]}  Ra6 {[%clk 0:02:10]} 22. Bc3 {[%clk 0:01:49]}  Rha8 {[%clk 0:02:07]} 23. a4 {[%clk 0:01:48]}  dxc4 {[%clk 0:02:08]} 24. bxc4 {[%clk 0:01:45]}  Rxa4 {[%clk 0:02:08]} 25. Rxa4 {[%clk 0:01:41]}  Rxa4 {[%clk 0:02:08]} 26. dxc5 {[%clk 0:01:41]}  bxc5 {[%clk 0:02:09]} 27. g3 {[%clk 0:01:23]}  Rxc4 {[%clk 0:02:09]} 28. Bf6+ {[%clk 0:01:22]}  Kxf6 {[%clk 0:02:07]} 29. Rxc4 {[%clk 0:01:23]}  d2 {[%clk 0:02:08]} 30. Nxd2 {[%clk 0:01:23]}  Nxd2 {[%clk 0:02:09]} 31. Rc2 {[%clk 0:01:21]}  Nf3+ {[%clk 0:02:09]} 32. Kg2 {[%clk 0:01:20]}  Ne1+ {[%clk 0:02:09]} 0-1


[Site "https://www.chess.com"]

[Event "Titled Tuesday Blitz March 22 Late 2022"]
[White "Weber, Samuel"]
[Black "Brahami, Lamine"]
[WhiteFideId "12924008"]
[BlackFideId "7905637"]
[WhiteElo "2215"]
[BlackElo "1909"]
[Result "0-1"]
[Round "07"]
[TimeControl "180+1"]
[Date "2022.03.22"]
[WhiteClock "0:00:19"]
[BlackClock "0:00:19"]

1. e4 {[%clk 0:03:00]}  c5 {[%clk 0:02:54]} 2. Nf3 {[%clk 0:03:00]}  d6 {[%clk 0:02:54]} 3. d4 {[%clk 0:03:00]}  cxd4 {[%clk 0:02:55]} 4. Nxd4 {[%clk 0:03:01]}  Nf6 {[%clk 0:02:55]} 5. Nc3 {[%clk 0:03:01]}  a6 {[%clk 0:02:55]} 6. Be3 {[%clk 0:03:00]}  e5 {[%clk 0:02:55]} 7. Nde2 {[%clk 0:02:58]}  Ng4 {[%clk 0:02:52]} 8. Qd2 {[%clk 0:02:47]}  Nxe3 {[%clk 0:02:51]} 9. fxe3 {[%clk 0:02:47]}  Be6 {[%clk 0:02:51]} 10. O-O-O {[%clk 0:02:47]}  Nd7 {[%clk 0:02:50]} 11. Ng3 {[%clk 0:02:44]}  Be7 {[%clk 0:02:43]} 12. Nf5 {[%clk 0:02:43]}  Bxf5 {[%clk 0:02:43]} 13. exf5 {[%clk 0:02:44]}  Nf6 {[%clk 0:02:43]} 14. Bc4 {[%clk 0:02:43]}  Rc8 {[%clk 0:02:39]} 15. Bb3 {[%clk 0:02:42]}  O-O {[%clk 0:02:39]} 16. g4 {[%clk 0:02:39]}  h6 {[%clk 0:02:30]} 17. h4 {[%clk 0:02:38]}  Nxg4 {[%clk 0:02:29]} 18. h5 {[%clk 0:02:35]}  Bg5 {[%clk 0:02:28]} 19. Kb1 {[%clk 0:02:32]}  Nxe3 {[%clk 0:02:27]} 20. Rdg1 {[%clk 0:02:25]}  Nxf5 {[%clk 0:02:22]} 21. Qd3 {[%clk 0:02:17]}  Nd4 {[%clk 0:02:21]} 22. Bd5 {[%clk 0:02:17]}  Qa5 {[%clk 0:02:13]} 23. Rf1 {[%clk 0:02:16]}  Rc5 {[%clk 0:01:32]} 24. Bxf7+ {[%clk 0:01:48]}  Rxf7 {[%clk 0:01:09]} 25. Rxf7 {[%clk 0:01:48]}  Kxf7 {[%clk 0:01:08]} 26. Qg6+ {[%clk 0:01:48]}  Ke7 {[%clk 0:01:08]} 27. Ne4 {[%clk 0:01:32]}  Ne6 {[%clk 0:00:56]} 28. Rf1 {[%clk 0:01:28]}  Rd5 {[%clk 0:00:38]} 29. Qf7+ {[%clk 0:01:22]}  Kd8 {[%clk 0:00:37]} 30. Qxe6 {[%clk 0:01:22]}  Kc7 {[%clk 0:00:32]} 31. Nc3 {[%clk 0:01:18]}  Rd4 {[%clk 0:00:28]} 32. a3 {[%clk 0:01:09]}  Kb8 {[%clk 0:00:26]} 33. Qg8+ {[%clk 0:01:01]}  Ka7 {[%clk 0:00:25]} 34. Qxg7 {[%clk 0:01:02]}  Bd2 {[%clk 0:00:26]} 35. Na2 {[%clk 0:00:58]}  Qb6 {[%clk 0:00:24]} 36. Qg3 {[%clk 0:00:48]}  Bf4 {[%clk 0:00:24]} 37. Qc3 {[%clk 0:00:47]}  Rd2 {[%clk 0:00:23]} 38. Nb4 {[%clk 0:00:43]}  a5 {[%clk 0:00:22]} 39. Nd3 {[%clk 0:00:43]}  Rg2 {[%clk 0:00:20]} 40. Ka2 {[%clk 0:00:39]}  Bg5 {[%clk 0:00:19]} 41. Qc4 {[%clk 0:00:38]}  Qc6 {[%clk 0:00:18]} 42. Qxc6 {[%clk 0:00:27]}  bxc6 {[%clk 0:00:19]} 43. Kb3 {[%clk 0:00:27]}  e4 {[%clk 0:00:19]} 44. Ne1 {[%clk 0:00:25]}  Re2 {[%clk 0:00:18]} 45. c3 {[%clk 0:00:23]}  d5 {[%clk 0:00:19]} 46. a4 {[%clk 0:00:24]}  c5 {[%clk 0:00:19]} 47. c4 {[%clk 0:00:22]}  d4 {[%clk 0:00:18]} 48. Rf7+ {[%clk 0:00:23]}  Kb6 {[%clk 0:00:17]} 49. Nc2 {[%clk 0:00:23]}  d3 {[%clk 0:00:17]} 50. Na3 {[%clk 0:00:23]}  d2 {[%clk 0:00:17]} 51. Kc2 {[%clk 0:00:24]}  Re1 {[%clk 0:00:18]} 52. Rd7 {[%clk 0:00:25]}  Rc1+ {[%clk 0:00:17]} 53. Kb3 {[%clk 0:00:22]}  d1=Q+ {[%clk 0:00:18]} 54. Rxd1 {[%clk 0:00:19]}  Rxd1 {[%clk 0:00:19]} 0-1


[Site "https://www.chess.com"]

[Event "Titled Tuesday Blitz March 22 Late 2022"]
[White "Wieczorek, Oskar"]
[Black "Horak, Martin"]
[WhiteFideId "1133950"]
[BlackFideId "367095"]
[WhiteElo "2319"]
[BlackElo "1997"]
[Result "0-1"]
[Round "07"]
[TimeControl "180+1"]
[Date "2022.03.22"]
[WhiteClock "0:00:49"]
[BlackClock "0:00:20"]

1. e4 {[%clk 0:03:00]}  e5 {[%clk 0:02:57]} 2. Nf3 {[%clk 0:02:59]}  Nc6 {[%clk 0:02:57]} 3. Nc3 {[%clk 0:03:00]}  Nf6 {[%clk 0:02:57]} 4. h3 {[%clk 0:02:57]}  d5 {[%clk 0:02:56]} 5. exd5 {[%clk 0:02:56]}  Nxd5 {[%clk 0:02:57]} 6. Bb5 {[%clk 0:02:56]}  Nxc3 {[%clk 0:02:44]} 7. bxc3 {[%clk 0:02:57]}  Bd6 {[%clk 0:02:37]} 8. O-O {[%clk 0:02:57]}  O-O {[%clk 0:02:37]} 9. d4 {[%clk 0:02:57]}  exd4 {[%clk 0:02:29]} 10. cxd4 {[%clk 0:02:58]}  h6 {[%clk 0:02:30]} 11. c4 {[%clk 0:02:52]}  Qf6 {[%clk 0:02:20]} 12. Bb2 {[%clk 0:02:52]}  Qg6 {[%clk 0:01:59]} 13. Bxc6 {[%clk 0:02:44]}  bxc6 {[%clk 0:01:55]} 14. c5 {[%clk 0:02:44]}  Bf4 {[%clk 0:01:44]} 15. Bc1 {[%clk 0:02:25]}  Bxh3 {[%clk 0:01:21]} 16. Nh4 {[%clk 0:02:09]}  Qg5 {[%clk 0:01:18]} 17. Qf3 {[%clk 0:01:04]}  Bxc1 {[%clk 0:01:07]} 18. Qxh3 {[%clk 0:01:02]}  Bb2 {[%clk 0:00:50]} 19. Rad1 {[%clk 0:01:02]}  Rfd8 {[%clk 0:00:47]} 20. Nf3 {[%clk 0:00:55]}  Qf6 {[%clk 0:00:37]} 21. Rd3 {[%clk 0:00:51]}  Bxd4 {[%clk 0:00:30]} 22. Rfd1 {[%clk 0:00:50]}  Bxc5 {[%clk 0:00:26]} 23. Qg4 {[%clk 0:00:47]}  Rxd3 {[%clk 0:00:22]} 24. Rxd3 {[%clk 0:00:48]}  Rd8 {[%clk 0:00:20]} 25. Rxd8+ {[%clk 0:00:48]}  Qxd8 {[%clk 0:00:21]} 26. Qc4 {[%clk 0:00:48]}  Qd1+ {[%clk 0:00:19]} 27. Kh2 {[%clk 0:00:49]}  Bd6+ {[%clk 0:00:20]} 0-1


[Site "https://www.chess.com"]

[Event "Titled Tuesday Blitz March 22 Late 2022"]
[White "Abdrlauf, Elham"]
[Black "Maksimovic, Bojan"]
[WhiteFideId "1533533"]
[BlackFideId "14408120"]
[WhiteElo "2334"]
[BlackElo "2448"]
[Result "1-0"]
[Round "08"]
[TimeControl "180+1"]
[Date "2022.03.22"]
[WhiteClock "0:00:06"]
[BlackClock "0:00:05"]

1. e4 {[%clk 0:03:00]}  c5 {[%clk 0:03:00]} 2. Nf3 {[%clk 0:02:59]}  Nc6 {[%clk 0:03:00]} 3. d4 {[%clk 0:02:59]}  cxd4 {[%clk 0:03:01]} 4. Nxd4 {[%clk 0:03:00]}  Nf6 {[%clk 0:03:02]} 5. Nc3 {[%clk 0:03:00]}  e5 {[%clk 0:03:02]} 6. Nde2 {[%clk 0:03:01]}  Bc5 {[%clk 0:03:00]} 7. Ng3 {[%clk 0:03:01]}  d6 {[%clk 0:02:57]} 8. Na4 {[%clk 0:03:01]}  Bb4+ {[%clk 0:02:56]} 9. c3 {[%clk 0:03:01]}  Ba5 {[%clk 0:02:55]} 10. Bd3 {[%clk 0:03:02]}  h6 {[%clk 0:02:54]} 11. O-O {[%clk 0:03:03]}  O-O {[%clk 0:02:54]} 12. Qe2 {[%clk 0:02:54]}  Be6 {[%clk 0:02:53]} 13. h3 {[%clk 0:02:50]}  a6 {[%clk 0:02:53]} 14. b4 {[%clk 0:02:49]}  Bc7 {[%clk 0:02:53]} 15. Rd1 {[%clk 0:02:47]}  Qe7 {[%clk 0:02:42]} 16. Nb2 {[%clk 0:02:43]}  a5 {[%clk 0:02:37]} 17. b5 {[%clk 0:02:41]}  Nb8 {[%clk 0:02:37]} 18. Nc4 {[%clk 0:02:32]}  Nbd7 {[%clk 0:02:32]} 19. Ne3 {[%clk 0:02:31]}  Rfd8 {[%clk 0:01:57]} 20. Nef5 {[%clk 0:02:22]}  Qf8 {[%clk 0:01:57]} 21. Be3 {[%clk 0:02:23]}  Bb6 {[%clk 0:01:52]} 22. Bc4 {[%clk 0:02:02]}  Bxe3 {[%clk 0:01:42]} 23. Nxe3 {[%clk 0:01:58]}  Nb6 {[%clk 0:01:40]} 24. Bxe6 {[%clk 0:01:43]}  fxe6 {[%clk 0:01:41]} 25. Nc4 {[%clk 0:01:44]}  Nxc4 {[%clk 0:01:25]} 26. Qxc4 {[%clk 0:01:45]}  Qf7 {[%clk 0:01:26]} 27. Rd3 {[%clk 0:01:33]}  Rac8 {[%clk 0:01:25]} 28. Qa4 {[%clk 0:01:34]}  b6 {[%clk 0:01:25]} 29. Rad1 {[%clk 0:01:34]}  d5 {[%clk 0:01:25]} 30. exd5 {[%clk 0:01:29]}  exd5 {[%clk 0:01:25]} 31. Qh4 {[%clk 0:01:29]}  Rf8 {[%clk 0:01:18]} 32. Nf5 {[%clk 0:01:24]}  Qe6 {[%clk 0:01:16]} 33. Rf3 {[%clk 0:01:11]}  Rc4 {[%clk 0:00:53]} 34. Nxh6+ {[%clk 0:00:50]}  Kh7 {[%clk 0:00:53]} 35. Ng4+ {[%clk 0:00:50]}  Kg8 {[%clk 0:00:45]} 36. Nxf6+ {[%clk 0:00:39]}  Rxf6 {[%clk 0:00:27]} 37. Rxf6 {[%clk 0:00:39]}  gxf6 {[%clk 0:00:28]} 38. Qg3+ {[%clk 0:00:27]}  Kf7 {[%clk 0:00:28]} 39. Qd3 {[%clk 0:00:27]}  Rc5 {[%clk 0:00:24]} 40. Qh7+ {[%clk 0:00:27]}  Ke8 {[%clk 0:00:24]} 41. Rd3 {[%clk 0:00:21]}  Qf7 {[%clk 0:00:15]} 42. Qh8+ {[%clk 0:00:18]}  Qf8 {[%clk 0:00:13]} 43. Qh5+ {[%clk 0:00:18]}  Qf7 {[%clk 0:00:13]} 44. Qf5 {[%clk 0:00:19]}  Ke7 {[%clk 0:00:06]} 45. Rg3 {[%clk 0:00:19]}  Qe6 {[%clk 0:00:05]} 46. Qh7+ {[%clk 0:00:15]}  Kd6 {[%clk 0:00:06]} 47. a4 {[%clk 0:00:15]}  Rc4 {[%clk 0:00:05]} 48. Qb7 {[%clk 0:00:12]}  e4 {[%clk 0:00:04]} 49. Qxb6+ {[%clk 0:00:11]}  Ke5 {[%clk 0:00:05]} 50. Qb8+ {[%clk 0:00:12]}  Qd6 {[%clk 0:00:04]} 51. Qe8+ {[%clk 0:00:10]}  Qe6 {[%clk 0:00:05]} 52. Qb8+ {[%clk 0:00:07]}  Qd6 {[%clk 0:00:05]} 53. Qh8 {[%clk 0:00:06]} 1-0


[Site "https://www.chess.com"]

[Event "Titled Tuesday Blitz March 22 Late 2022"]
[White "Al-Tarboush, Ward"]
[Black "Milosevic, Milos"]
[WhiteFideId "7601450"]
[BlackFideId "964875"]
[WhiteElo "2276"]
[BlackElo "2237"]
[Result "0-1"]
[Round "08"]
[TimeControl "180+1"]
[Date "2022.03.22"]
[WhiteClock "0:00:47"]
[BlackClock "0:00:10"]

1. e4 {[%clk 0:03:00]}  c5 {[%clk 0:02:59]} 2. Nf3 {[%clk 0:03:00]}  Nc6 {[%clk 0:02:59]} 3. d4 {[%clk 0:03:00]}  cxd4 {[%clk 0:03:00]} 4. Nxd4 {[%clk 0:03:00]}  Nf6 {[%clk 0:03:00]} 5. Nc3 {[%clk 0:02:57]}  e5 {[%clk 0:02:59]} 6. Ndb5 {[%clk 0:02:57]}  d6 {[%clk 0:02:59]} 7. Nd5 {[%clk 0:02:57]}  Nxd5 {[%clk 0:02:55]} 8. exd5 {[%clk 0:02:57]}  Nb8 {[%clk 0:02:56]} 9. c4 {[%clk 0:02:56]}  a6 {[%clk 0:02:52]} 10. Nc3 {[%clk 0:02:56]}  Bf5 {[%clk 0:02:51]} 11. Bd3 {[%clk 0:02:54]}  Bxd3 {[%clk 0:02:44]} 12. Qxd3 {[%clk 0:02:55]}  Be7 {[%clk 0:02:44]} 13. O-O {[%clk 0:02:55]}  O-O {[%clk 0:02:41]} 14. Be3 {[%clk 0:02:54]}  f5 {[%clk 0:02:38]} 15. f3 {[%clk 0:02:54]}  Bg5 {[%clk 0:02:31]} 16. Bf2 {[%clk 0:02:53]}  Nd7 {[%clk 0:01:47]} 17. b4 {[%clk 0:02:53]}  Rc8 {[%clk 0:01:41]} 18. Na4 {[%clk 0:02:45]}  e4 {[%clk 0:01:37]} 19. fxe4 {[%clk 0:02:38]}  fxe4 {[%clk 0:01:38]} 20. Qxe4 {[%clk 0:02:32]}  Re8 {[%clk 0:01:38]} 21. Qf5 {[%clk 0:02:08]}  Rxc4 {[%clk 0:01:30]} 22. Nb6 {[%clk 0:02:02]}  Nxb6 {[%clk 0:01:27]} 23. Bxb6 {[%clk 0:01:56]}  Qxb6+ {[%clk 0:01:28]} 24. Kh1 {[%clk 0:01:56]}  Bf6 {[%clk 0:01:28]} 25. Rae1 {[%clk 0:01:55]}  Rxe1 {[%clk 0:01:25]} 26. Rxe1 {[%clk 0:01:56]}  Qd8 {[%clk 0:00:52]} 27. Qh5 {[%clk 0:01:52]}  g6 {[%clk 0:00:49]} 28. Qh3 {[%clk 0:01:50]}  Rxb4 {[%clk 0:00:46]} 29. Rf1 {[%clk 0:01:49]}  Kg7 {[%clk 0:00:46]} 30. Qe6 {[%clk 0:01:38]}  Rb2 {[%clk 0:00:41]} 31. h4 {[%clk 0:01:35]}  Rxa2 {[%clk 0:00:40]} 32. h5 {[%clk 0:01:34]}  gxh5 {[%clk 0:00:38]} 33. Qf5 {[%clk 0:01:20]}  Ra1 {[%clk 0:00:37]} 34. Rxa1 {[%clk 0:01:11]}  Bxa1 {[%clk 0:00:38]} 35. Qxh5 {[%clk 0:01:08]}  Qf6 {[%clk 0:00:33]} 36. Qg4+ {[%clk 0:01:08]}  Kh6 {[%clk 0:00:33]} 37. Qh3+ {[%clk 0:01:08]}  Kg6 {[%clk 0:00:33]} 38. Qg4+ {[%clk 0:01:06]}  Qg5 {[%clk 0:00:26]} 39. Qe6+ {[%clk 0:01:05]}  Kh5 {[%clk 0:00:26]} 40. Qf7+ {[%clk 0:01:05]}  Kh6 {[%clk 0:00:21]} 41. Qf8+ {[%clk 0:01:04]}  Bg7 {[%clk 0:00:20]} 42. Qxd6+ {[%clk 0:01:03]}  Bf6 {[%clk 0:00:18]} 43. Qe6 {[%clk 0:00:58]}  Qc1+ {[%clk 0:00:12]} 44. Kh2 {[%clk 0:00:57]}  Qf4+ {[%clk 0:00:13]} 45. Kh1 {[%clk 0:00:54]}  Qh4+ {[%clk 0:00:11]} 46. Kg1 {[%clk 0:00:54]}  Qd4+ {[%clk 0:00:10]} 47. Kh1 {[%clk 0:00:51]}  Qe5 {[%clk 0:00:11]} 48. Qf7 {[%clk 0:00:47]}  Qh5+ {[%clk 0:00:10]} 0-1


[Site "https://www.chess.com"]

[Event "Titled Tuesday Blitz March 22 Late 2022"]
[White "Altman, Joshua"]
[Black "Dardha, Daniel"]
[WhiteFideId "426210"]
[BlackFideId "240990"]
[WhiteElo "1945"]
[BlackElo "2482"]
[Result "1-0"]
[Round "08"]
[TimeControl "180+1"]
[Date "2022.03.22"]
[WhiteClock "0:00:14"]
[BlackClock "0:00:02"]

1. d4 {[%clk 0:03:00]}  f5 {[%clk 0:02:50]} 2. Nc3 {[%clk 0:03:00]}  d5 {[%clk 0:02:49]} 3. Bf4 {[%clk 0:02:59]}  Be6 {[%clk 0:02:45]} 4. e3 {[%clk 0:02:58]}  Nf6 {[%clk 0:02:40]} 5. Bd3 {[%clk 0:02:56]}  Nbd7 {[%clk 0:02:34]} 6. Nf3 {[%clk 0:02:52]}  g6 {[%clk 0:02:24]} 7. O-O {[%clk 0:02:44]}  Bg7 {[%clk 0:02:18]} 8. Nb5 {[%clk 0:02:37]}  Rc8 {[%clk 0:01:54]} 9. Nxa7 {[%clk 0:02:37]}  Ra8 {[%clk 0:01:54]} 10. Nb5 {[%clk 0:02:37]}  Rc8 {[%clk 0:01:54]} 11. Rc1 {[%clk 0:02:19]}  c6 {[%clk 0:01:51]} 12. Nc3 {[%clk 0:02:19]}  O-O {[%clk 0:01:50]} 13. Ne2 {[%clk 0:02:16]}  Ne4 {[%clk 0:01:46]} 14. c4 {[%clk 0:02:08]}  Kh8 {[%clk 0:01:44]} 15. cxd5 {[%clk 0:02:05]}  Bxd5 {[%clk 0:01:41]} 16. Bc4 {[%clk 0:01:59]}  e6 {[%clk 0:01:20]} 17. Bxd5 {[%clk 0:01:52]}  exd5 {[%clk 0:01:21]} 18. Qb3 {[%clk 0:01:44]}  Qb6 {[%clk 0:01:13]} 19. Qxb6 {[%clk 0:01:34]}  Nxb6 {[%clk 0:01:14]} 20. Ne5 {[%clk 0:01:34]}  Ra8 {[%clk 0:01:10]} 21. a3 {[%clk 0:01:33]}  g5 {[%clk 0:01:00]} 22. Bg3 {[%clk 0:01:32]}  Kg8 {[%clk 0:00:57]} 23. Nd3 {[%clk 0:01:09]}  Nc4 {[%clk 0:00:39]} 24. Rc2 {[%clk 0:00:55]}  h5 {[%clk 0:00:29]} 25. h4 {[%clk 0:00:49]}  Nxg3 {[%clk 0:00:21]} 26. Nxg3 {[%clk 0:00:50]}  gxh4 {[%clk 0:00:20]} 27. Nxh5 {[%clk 0:00:50]}  Bh8 {[%clk 0:00:18]} 28. Nhf4 {[%clk 0:00:45]}  Rfe8 {[%clk 0:00:18]} 29. Nc5 {[%clk 0:00:45]}  Re7 {[%clk 0:00:15]} 30. Ra1 {[%clk 0:00:31]}  Bf6 {[%clk 0:00:14]} 31. Ra2 {[%clk 0:00:30]}  Nd6 {[%clk 0:00:10]} 32. b3 {[%clk 0:00:24]}  Kf7 {[%clk 0:00:09]} 33. a4 {[%clk 0:00:23]}  Ne4 {[%clk 0:00:07]} 34. Nfd3 {[%clk 0:00:22]}  Rg8 {[%clk 0:00:04]} 35. Nxe4 {[%clk 0:00:20]}  fxe4 {[%clk 0:00:05]} 36. Nf4 {[%clk 0:00:20]}  Bg5 {[%clk 0:00:05]} 37. Nh3 {[%clk 0:00:18]}  Ke6 {[%clk 0:00:04]} 38. b4 {[%clk 0:00:18]}  Reg7 {[%clk 0:00:04]} 39. Kf1 {[%clk 0:00:18]}  Bh6 {[%clk 0:00:05]} 40. b5 {[%clk 0:00:14]}  cxb5 {[%clk 0:00:03]} 41. axb5 {[%clk 0:00:14]}  Rxg2 {[%clk 0:00:04]} 42. Rc7 {[%clk 0:00:14]}  Rh2 {[%clk 0:00:03]} 43. Nf4+ {[%clk 0:00:13]}  Bxf4 {[%clk 0:00:03]} 44. exf4 {[%clk 0:00:14]}  h3 {[%clk 0:00:03]} 45. Rxb7 {[%clk 0:00:14]}  e3 {[%clk 0:00:01]} 46. Ra6+ {[%clk 0:00:13]}  Kf5 {[%clk 0:00:02]} 47. Rf7+ {[%clk 0:00:14]}  Ke4 {[%clk 0:00:02]} 48. Re6+ {[%clk 0:00:13]}  Kf3 {[%clk 0:00:03]} 49. Rxe3+ {[%clk 0:00:13]}  Kg4 {[%clk 0:00:01]} 50. Rg3+ {[%clk 0:00:13]}  Kh4 {[%clk 0:00:01]} 51. Rxg8 {[%clk 0:00:13]}  Rh1+ {[%clk 0:00:02]} 52. Ke2 {[%clk 0:00:14]} 1-0


[Site "https://www.chess.com"]